[Event "Red Bull Chess Masters 2018"]
[Site "Istanbul"]
[Date "2018.10.20"]
[Round "2.1"]
[White "Eraslan, Ecem"]
[Black "Dai, Irmak"]
[Result "1-0"]
[ECO "B22"]
[WhiteElo "1290"]
[BlackElo "1854"]
[Annotator "NA RC"]
[PlyCount "82"]
[EventDate "2018.10.19"]
[EventType "team-tourn"]
[EventCountry "TUR"]
[SourceTitle "playchess.com"]
[Source "ChessBase"]
[SourceQuality "1"]
[TimeControl "600+5"]

1. e4 {[%emt 0:00:00]} c5 {[%emt 0:00:05]} 2. c3 {[%emt 0:00:04]} d5 {[%emt 0:00:05]} 3. exd5 {[%emt 0:00:05]} Qxd5 {[%emt 0:00:05]} 4. d4 {[%emt 0:00:00]} cxd4 {[%emt 0:01:05]} 5. cxd4 {[%emt 0:00:00]} Nc6 {[%emt 0:00:28]} 6. Nf3 {[%emt 0:00:06]} e6 {[%emt 0:01:16]} 7. Be2 {[%emt 0:01:19]} Nf6 {[%emt 0:00:05]} 8. Nc3 {[%emt 0:00:05]} Qd8 {[%emt 0:00:07]} 9. O-O {[%emt 0:00:02]} Be7 {[%emt 0:00:05]} 10. a3 {[%emt 0:00:05]} O-O {[%emt 0:00:08]} 11. h3 {[%emt 0:01:18]} Nd5 {[%emt 0:01:18]} 12. Nxd5 $11 {[%emt 0:00:30]} Qxd5 {[%emt 0:00:10]} 13. Be3 {[%emt 0:00:23]} b5 {[%emt 0:02:10]} 14. Qd3 {[%emt 0:04:10]} a6 {[%emt 0:00:20]} 15. Rac1 {[%emt 0:00:30]} Bb7 {[%emt 0:00:26]} 16. Rfd1 {[%emt 0:00:27]} Rac8 {[%emt 0:00:22]} 17. Bf1 {[%emt 0:00:12]} Rfd8 {[%emt 0:00:20]} 18. Kh1 {[%emt 0:00:45]} Rd7 {[%emt 0:01:22]} 19. Bf4 {[%emt 0:00:43]} f6 {[%emt 0:01:08]} 20. Be3 {[%emt 0:00:11]} Rcd8 {[%emt 0:00:05]} 21. Rc3 {[%emt 0:00:13]} Na5 {[%emt 0:00:13]} 22. Qd2 {[%emt 0:00:12]} Nc6 {[%emt 0:00:17]} 23. Kg1 {[%emt 0:00:20]} b4 {[%emt 0:00:05]} 24. Rd3 {[%emt 0:00:09]} bxa3 {[%emt 0:00:06]} 25. bxa3 {[%emt 0:00:05]} Na5 {[%emt 0:00:05]} 26. Rc3 {[%emt 0:00:05]} Nc6 {[%emt 0:00:05]} 27. Qc2 {[%emt 0:00:05]} Qa5 {[%emt 0:00:05]} 28. Bd2 {[%emt 0:00:05]} Qb6 {[%emt 0:00:05]} 29. Be3 {[%emt 0:00:05]} Rc8 {[%emt 0:00:05]} 30. Rb1 {[%emt 0:00:00]} Qa7 {[%emt 0:00:03]} 31. d5 Qa8 {[%emt 0:00:10]} 32. dxc6 {[%emt 0:00:00]} Rxc6 {[%emt 0:00:01]} 33. Rxc6 {[%emt 0:00:00]} Bxc6 {[%emt 0:00:05]} 34. Be2 {[%emt 0:00:00]} Bxa3 {[%emt 0:00:05]} 35. Qb3 {[%emt 0:00:05]} Bf8 {[%emt 0:00:05]} 36. Qxe6+ {[%emt 0:00:05]} Kh8 {[%emt 0:00:04]} 37. Bc4 {[%emt 0:00:09]} Ba3 {[%emt 0:00:05]} 38. Rb3 {[%emt 0:00:05]} Bd6 {[%emt 0:00:10]} 39. Rd3 {[%emt 0:00:08]} Qb8 {[%emt 0:00:04]} 40. Rb3 {[%emt 0:00:15]} Qc8 {[%emt 0:00:05]} 41. Rb6 {[%emt 0:00:06]} Bxf3 {[%emt 0:00:12]} 1-0

[Event "Red Bull Chess Masters 2018"]
[Site "Istanbul"]
[Date "2018.10.20"]
[Round "2.1"]
[White "Tofan, Zeynep"]
[Black "Sahin, Handenur"]
[Result "0-1"]
[ECO "C55"]
[WhiteElo "1058"]
[BlackElo "1998"]
[Annotator "NA RC"]
[PlyCount "40"]
[EventDate "2018.10.19"]
[EventType "team-tourn"]
[EventCountry "TUR"]
[SourceTitle "playchess.com"]
[Source "ChessBase"]
[SourceQuality "1"]
[TimeControl "600+5"]

1. e4 {[%emt 0:00:02]} e5 {[%emt 0:00:06]} 2. Nf3 {[%emt 0:00:05]} Nc6 {[%emt 0:00:05]} 3. Nc3 {[%emt 0:00:04]} Nf6 {[%emt 0:00:00]} 4. Bc4 {[%emt 0:00:19]} Nxe4 {[%emt 0:00:21]} 5. Nxe4 {[%emt 0:00:05]} d5 {[%emt 0:00:00]} 6. Bxd5 {[%emt 0:00:16]} Qxd5 {[%emt 0:00:02]} 7. Nc3 {[%emt 0:00:54]} Qd8 {[%emt 0:00:05]} 8. d3 {[%emt 0:00:03]} Be7 {[%emt 0:00:49]} 9. h3 {[%emt 0:00:11]} O-O {[%emt 0:00:08]} 10. O-O {[%emt 0:00:02]} Bf5 {[%emt 0:00:24]} 11. Re1 {[%emt 0:00:14]} Bd6 {[%emt 0:00:24]} 12. Be3 {[%emt 0:01:28]} Re8 {[%emt 0:00:12]} 13. a3 {[%emt 0:00:42]} h6 {[%emt 0:01:19]} 14. Qd2 {[%emt 0:00:22]} Qd7 {[%emt 0:00:53]} 15. Kf1 {[%emt 0:02:33]} Rad8 {[%emt 0:00:50]} 16. Nd5 {[%emt 0:00:07]} Qe6 {[%emt 0:01:20]} 17. Nc3 {[%emt 0:02:01]} Bf8 {[%emt 0:00:53]} 18. Rad1 {[%emt 0:01:36]} Qf6 {[%emt 0:00:08]} 19. Qc1 {[%emt 0:00:10]} Bxh3 {[%emt 0:00:10]} 20. gxh3 {[%emt 0:00:10]} Qxf3 {[%emt 0:00:03]} 0-1

[Event "Red Bull Chess Masters 2018"]
[Site "Istanbul"]
[Date "2018.10.20"]
[Round "2.2"]
[White "Sahin, Handenur"]
[Black "Tofan, Zeynep"]
[Result "1-0"]
[ECO "C62"]
[WhiteElo "1998"]
[BlackElo "1058"]
[Annotator "NA RC"]
[PlyCount "56"]
[EventDate "2018.10.19"]
[EventType "team-tourn"]
[EventCountry "TUR"]
[SourceTitle "playchess.com"]
[Source "ChessBase"]
[SourceQuality "1"]
[TimeControl "600+5"]

1. e4 {[%emt 0:00:05]} e5 {[%emt 0:00:05]} 2. Nf3 {[%emt 0:00:02]} Nc6 {[%emt 0:00:07]} 3. Bb5 {[%emt 0:00:05]} d6 {[%emt 0:00:05]} 4. Nc3 {[%emt 0:00:17]} Bd7 {[%emt 0:00:05]} 5. O-O {[%emt 0:00:05]} Be7 {[%emt 0:00:05]} 6. d4 {[%emt 0:00:06]} exd4 {[%emt 0:00:10]} 7. Nxd4 {[%emt 0:00:01]} Nxd4 {[%emt 0:00:35]} 8. Qxd4 {[%emt 0:00:29]} Nf6 {[%emt 0:02:20]} 9. Bc4 {[%emt 0:00:54]} O-O {[%emt 0:01:03]} 10. Bg5 {[%emt 0:00:44]} h6 {[%emt 0:00:45]} 11. Bh4 {[%emt 0:00:13]} a6 {[%emt 0:01:09]} 12. a4 {[%emt 0:00:14]} Rb8 {[%emt 0:00:28]} 13. a5 {[%emt 0:00:08]} Re8 {[%emt 0:01:07]} 14. Rfe1 {[%emt 0:00:23]} Bc6 {[%emt 0:01:01]} 15. Bg3 {[%emt 0:01:21]} Qd7 {[%emt 0:00:59]} 16. h3 {[%emt 0:00:22]} Rbd8 {[%emt 0:00:36]} 17. Nd5 {[%emt 0:01:03]} Nxd5 {[%emt 0:00:07]} 18. exd5 {[%emt 0:00:33]} Bb5 {[%emt 0:00:08]} 19. Bb3 {[%emt 0:01:11]} Bf6 {[%emt 0:00:09]} 20. Qd2 {[%emt 0:00:38]} Bxb2 {[%emt 0:00:05]} 21. c4 {[%emt 0:00:31]} Bxa1 {[%emt 0:00:22]} 22. Rxa1 {[%emt 0:00:04]} Bxc4 {[%emt 0:00:09]} 23. Bxc4 {[%emt 0:00:05]} Qf5 {[%emt 0:00:06]} 24. Bd3 {[%emt 0:00:08]} Qf6 {[%emt 0:00:01]} 25. Rc1 {[%emt 0:00:09]} Rd7 {[%emt 0:00:11]} 26. Qb4 {[%emt 0:00:21]} c6 {[%emt 0:00:06]} 27. dxc6 {[%emt 0:00:05]} bxc6 {[%emt 0:00:01]} 28. Bxa6 {[%emt 0:00:24]} Re6 {[%emt 0:00:15]} 1-0

[Event "Red Bull Chess Masters 2018"]
[Site "Istanbul"]
[Date "2018.10.20"]
[Round "2.2"]
[White "Degirmenci, Yagiz"]
[Black "Atas, Yunus"]
[Result "1/2-1/2"]
[ECO "D46"]
[WhiteElo "1881"]
[BlackElo "1921"]
[Annotator "NA"]
[PlyCount "150"]
[EventDate "2018.10.19"]
[EventType "team-tourn"]
[EventCountry "TUR"]
[SourceTitle "playchess.com"]
[Source "ChessBase"]
[SourceQuality "1"]
[TimeControl "600+5"]

1. d4 {[%emt 0:00:05]} Nf6 {[%emt 0:00:05]} 2. Nf3 {[%emt 0:00:00]} d5 {[%emt 0:00:10]} 3. c4 {[%emt 0:00:05]} c6 {[%emt 0:00:05]} 4. e3 {[%emt 0:00:05]} e6 {[%emt 0:00:13]} 5. b3 {[%emt 0:00:00]} Bd6 {[%emt 0:00:05]} 6. Bd3 {[%emt 0:00:04]} Nbd7 {[%emt 0:00:02]} 7. Bb2 {[%emt 0:00:18]} O-O {[%emt 0:00:07]} 8. O-O {[%emt 0:00:09]} Re8 {[%emt 0:00:04]} 9. Nc3 {[%emt 0:00:15]} e5 {[%emt 0:00:19]} 10. dxe5 {[%emt 0:00:16] D46: Semi-Slav: 5 e3 Nbd7 6 Bd3, Black avoids the Meran} Nxe5 {[%emt 0:00:04]} 11. cxd5 {[%emt 0:00:15]} cxd5 {[%emt 0:00:13]} 12. Be2 {[%emt 0:00:12]} Bf5 {[%emt 0:01:02]} 13. Nxd5 {[%emt 0:00:46]} Rc8 $146 {[%emt 0:00:49]} ({Predecessor:} 13... Be4 14. Nc3 Bc6 15. Nd4 Qe7 16. Nf5 {1-0 (16) Stern,R (2506)-Damm,H (1831) Berlin 2010}) 14. Nxf6+ {[%emt 0:00:53]} Qxf6 {[%emt 0:00:03]} 15. Nxe5 {[%emt 0:00:14]} Bxe5 {[%emt 0:00:06]} 16. Bxe5 {[%emt 0:00:12]} Qxe5 {[%emt 0:00:03]} 17. Bc4 {[%emt 0:00:24]} Red8 {[%emt 0:00:09]} 18. Qf3 {[%emt 0:00:02]} b5 {[%emt 0:00:14]} 19. Be2 {[%emt 0:00:27]} Rd2 {[%emt 0:00:45]} 20. Rfe1 {[%emt 0:01:15]} Be4 {[%emt 0:00:14]} 21. Qg3 {[%emt 0:00:23]} Qxg3 {[%emt 0:00:10]} 22. hxg3 {[%emt 0:00:24]} Rcc2 {[%emt 0:00:01]} 23. Rad1 {[%emt 0:00:22]} b4 {[%emt 0:00:22]} 24. Bc4 {[%emt 0:00:22]} Rxa2 {[%emt 0:01:29]} 25. Rxd2 {[%emt 0:00:05]} Rxd2 {[%emt 0:00:05]} 26. Ra1 {[%emt 0:00:00]} Rd7 {[%emt 0:00:28]} 27. Ra5 {[%emt 0:00:01]} g6 {[%emt 0:00:32]} 28. Re5 {[%emt 0:00:11]} Bd3 {[%emt 0:00:26]} 29. Rb5 {[%emt 0:00:30]} Bxc4 {[%emt 0:01:12]} 30. bxc4 {[%emt 0:00:05]} Rd1+ {[%emt 0:00:05]} 31. Kh2 {[%emt 0:00:00]} Rd2 {[%emt 0:00:36]} 32. f3 {[%emt 0:00:39]} Rd3 {[%emt 0:00:18]} 33. Rxb4 {[%emt 0:00:17]} Rxe3 {[%emt 0:00:02]} 34. Ra4 {[%emt 0:00:23]} Re7 {[%emt 0:00:04]} 35. c5 {[%emt 0:00:41]} Rc7 {[%emt 0:00:13]} 36. Kh3 {[%emt 0:00:12]} f6 {[%emt 0:00:02]} 37. Kg4 {[%emt 0:00:06]} Kf7 {[%emt 0:00:06]} 38. Kf4 {[%emt 0:00:05]} Ke6 {[%emt 0:00:05]} 39. Ke4 {[%emt 0:00:01]} Rxc5 {[%emt 0:00:29]} 40. Rxa7 {[%emt 0:00:06]} Re5+ {[%emt 0:00:23]} 41. Kd3 {[%emt 0:00:13]} h5 {[%emt 0:00:09]} 42. Ra6+ {[%emt 0:00:56]} Kf5 {[%emt 0:00:02]} 43. f4 {[%emt 0:00:12]} Re1 {[%emt 0:00:23]} 44. Rb6 {[%emt 0:00:19]} Rg1 {[%emt 0:00:30]} 45. Ke3 {[%emt 0:00:01]} Rxg2 {[%emt 0:00:03]} 46. Kf3 {[%emt 0:00:03]} Rd2 {[%emt 0:00:19]} 47. Rb5+ {[%emt 0:00:08]} Ke6 {[%emt 0:00:05]} 48. Ra5 {[%emt 0:00:05]} Rd3+ {[%emt 0:00:05]} 49. Kf2 {[%emt 0:00:13]} Rb3 {[%emt 0:00:15]} 50. Kg2 {[%emt 0:00:05]} Kf7 {[%emt 0:00:03]} 51. Kf2 {[%emt 0:00:19]} h4 {[%emt 0:00:01]} 52. gxh4 {[%emt 0:00:24]} Rh3 {[%emt 0:00:05]} 53. f5 {[%emt 0:00:05]} Rxh4 {[%emt 0:00:05]} 54. Ra7+ {[%emt 0:00:05]} Kg8 {[%emt 0:00:15]} 55. fxg6 {[%emt 0:00:17]} Rg4 {[%emt 0:00:01]} 56. Kf3 {[%emt 0:00:15]} Rxg6 {[%emt 0:00:05]} 57. Kf4 {[%emt 0:00:05]} Rg5 {[%emt 0:00:05]} 58. Rb7 {[%emt 0:00:00]} Re5 {[%emt 0:00:04]} 59. Ra7 {[%emt 0:00:00]} Kf8 {[%emt 0:00:00]} 60. Rb7 {[%emt 0:00:20]} Ke8 {[%emt 0:00:00]} 61. Ra7 $11 {[%emt 0:00:00]} Re7 {[%emt 0:00:13]} 62. Rxe7+ {[%emt 0:00:05]} Kxe7 {[%emt 0:00:01]} 63. Kf5 {[%emt 0:00:00]} Kf7 {[%emt 0:00:01]} 64. Kf4 {[%emt 0:00:00]} Ke6 {[%emt 0:00:01]} 65. Ke4 {[%emt 0:00:00]} f5+ {[%emt 0:00:05]} 66. Kf4 {[%emt 0:00:05]} Kf6 {[%emt 0:00:00]} 67. Kf3 {[%emt 0:00:00]} Ke5 {[%emt 0:00:00]} 68. Ke3 {[%emt 0:00:00]} f4+ {[%emt 0:00:00]} 69. Kf3 {[%emt 0:00:04]} Kf5 {[%emt 0:00:03]} 70. Kf2 {[%emt 0:00:00]} Ke4 {[%emt 0:00:00]} 71. Ke2 {[%emt 0:00:02]} f3+ {[%emt 0:00:00]} 72. Kf1 {[%emt 0:00:04]} Kf5 {[%emt 0:00:07]} 73. Kf2 {[%emt 0:00:02]} Kg4 {[%emt 0:00:00]} 74. Kf1 {[%emt 0:00:09]} Kf4 {[%emt 0:00:01]} 75. Kf2 {[%emt 0:00:00]} Ke4 {[%emt 0:00:01]} 1/2-1/2

[Event "Red Bull Chess Masters 2018"]
[Site "Istanbul"]
[Date "2018.10.20"]
[Round "2.2"]
[White "Dai, Irmak"]
[Black "Eraslan, Ecem"]
[Result "0-1"]
[ECO "C06"]
[WhiteElo "1854"]
[BlackElo "1290"]
[Annotator "NA RC"]
[PlyCount "58"]
[EventDate "2018.10.19"]
[EventType "team-tourn"]
[EventCountry "TUR"]
[SourceTitle "playchess.com"]
[Source "ChessBase"]
[SourceQuality "1"]
[TimeControl "600+5"]

1. e4 {[%emt 0:00:07]} e6 {[%emt 0:00:05]} 2. d4 {[%emt 0:00:05]} d5 {[%emt 0:00:05]} 3. Nd2 {[%emt 0:00:05]} Nf6 {[%emt 0:00:05]} 4. e5 {[%emt 0:00:05]} Nfd7 {[%emt 0:00:05]} 5. Bd3 {[%emt 0:00:05]} c5 {[%emt 0:00:05]} 6. c3 {[%emt 0:00:00]} Nc6 {[%emt 0:00:00]} 7. Ne2 {[%emt 0:00:00]} cxd4 {[%emt 0:00:00]} 8. cxd4 {[%emt 0:00:00]} f6 {[%emt 0:00:02]} 9. exf6 {[%emt 0:00:00]} Nxf6 {[%emt 0:00:05]} 10. O-O {[%emt 0:00:00]} Bd6 {[%emt 0:00:05]} 11. Nf3 {[%emt 0:00:05]} Qc7 {[%emt 0:00:00]} 12. h3 {[%emt 0:00:37]} O-O {[%emt 0:00:07]} 13. Bd2 {[%emt 0:02:15]} Bd7 {[%emt 0:00:11]} 14. Rc1 {[%emt 0:00:08]} Nh5 {[%emt 0:01:36]} 15. Qc2 {[%emt 0:00:35]} h6 {[%emt 0:00:12]} 16. Bh7+ {[%emt 0:01:49]} Kh8 {[%emt 0:00:16]} 17. Nh4 {[%emt 0:00:00]} Be8 {[%emt 0:00:20]} 18. Bg6 {[%emt 0:00:47]} Rf6 {[%emt 0:00:27]} 19. Bxe8 {[%emt 0:00:05]} Rxe8 {[%emt 0:00:08]} 20. Ng6+ {[%emt 0:01:17]} Kg8 {[%emt 0:00:04]} 21. g4 {[%emt 0:00:15]} Nxd4 {[%emt 0:01:52]} 22. Qxc7 {[%emt 0:01:11]} Nxe2+ {[%emt 0:00:12]} 23. Kh1 {[%emt 0:01:29]} Bxc7 {[%emt 0:00:29]} 24. Rxc7 {[%emt 0:00:52]} Nhg3+ {[%emt 0:00:26]} 25. Kg2 {[%emt 0:00:06]} Nxf1 {[%emt 0:00:14]} 26. Kxf1 {[%emt 0:00:05]} Ng3+ {[%emt 0:00:19]} 27. Kg2 {[%emt 0:00:05]} Rxg6 {[%emt 0:00:46]} 28. Kxg3 {[%emt 0:00:02]} e5 {[%emt 0:00:18]} 29. Rxb7 {[%emt 0:00:06]} Rb6 {[%emt 0:00:34]} 0-1

[Event "Red Bull Chess Masters 2018"]
[Site "Istanbul"]
[Date "2018.10.20"]
[Round "2.2"]
[White "Sahin, Hayrun Nisa"]
[Black "Sural, Ceren"]
[Result "1/2-1/2"]
[ECO "B01"]
[WhiteElo "1708"]
[BlackElo "1662"]
[Annotator "NA"]
[PlyCount "157"]
[EventDate "2018.10.19"]
[EventType "team-tourn"]
[EventCountry "TUR"]
[SourceTitle "playchess.com"]
[Source "ChessBase"]
[SourceQuality "1"]
[TimeControl "600+5"]

1. e4 {[%emt 0:00:05]} d5 {[%emt 0:00:05]} 2. exd5 {[%emt 0:00:05]} Qxd5 {[%emt 0:00:05]} 3. Nc3 {[%emt 0:00:05]} Qd8 {[%emt 0:00:05]} 4. Nf3 {[%emt 0:00:05]} Nf6 {[%emt 0:00:05]} 5. Bc4 {[%emt 0:00:05]} e6 {[%emt 0:00:05]} 6. d4 {[%emt 0:00:05]} c6 {[%emt 0:00:05]} 7. Be3 {[%emt 0:00:05]} Be7 {[%emt 0:00:00]} 8. Qd2 {[%emt 0:00:13]} Nbd7 {[%emt 0:00:04]} 9. h3 {[%emt 0:00:07]} Nb6 {[%emt 0:00:24]} 10. Bb3 {[%emt 0:00:01]} Nfd5 {[%emt 0:00:16]} 11. Nxd5 {[%emt 0:00:05]} cxd5 {[%emt 0:00:00]} 12. O-O {[%emt 0:00:20]} Bd7 {[%emt 0:00:13]} 13. Rac1 {[%emt 0:00:16]} O-O {[%emt 0:00:09]} 14. Ne5 {[%emt 0:00:15]} Bb5 {[%emt 0:00:12]} 15. Rfd1 {[%emt 0:00:54]} Nc4 {[%emt 0:00:05]} 16. Bxc4 {[%emt 0:00:20]} dxc4 {[%emt 0:00:07]} 17. d5 {[%emt 0:02:33]} Bf6 {[%emt 0:00:57]} 18. Bf4 {[%emt 0:00:40]} exd5 {[%emt 0:00:40]} 19. Qxd5 {[%emt 0:00:15]} Qxd5 {[%emt 0:00:38]} 20. Rxd5 {[%emt 0:00:02]} Bxe5 {[%emt 0:01:01]} 21. Rxe5 {[%emt 0:00:50]} Ba6 {[%emt 0:00:16]} 22. Rce1 {[%emt 0:00:09]} Rac8 {[%emt 0:00:20]} 23. c3 {[%emt 0:00:19]} Rfd8 {[%emt 0:00:13]} 24. Be3 {[%emt 0:00:00]} Ra8 {[%emt 0:00:14]} 25. Bd4 {[%emt 0:00:03]} b6 {[%emt 0:00:32]} 26. Re7 {[%emt 0:00:17]} Bc8 {[%emt 0:00:06]} 27. R7e3 {[%emt 0:00:51]} Be6 {[%emt 0:00:05]} 28. f4 {[%emt 0:00:12]} Bd5 {[%emt 0:00:28]} 29. Rg3 {[%emt 0:00:09]} g6 {[%emt 0:00:04]} 30. Rg5 {[%emt 0:00:11]} Bc6 {[%emt 0:00:00]} 31. Rge5 {[%emt 0:00:39]} Re8 {[%emt 0:00:22]} 32. Kf2 {[%emt 0:00:16]} Rxe5 {[%emt 0:00:05]} 33. Bxe5 {[%emt 0:00:15]} Rd8 {[%emt 0:00:13]} 34. Bd4 {[%emt 0:00:05]} Re8 {[%emt 0:00:05]} 35. Be5 {[%emt 0:00:05]} Rd8 {[%emt 0:00:00]} 36. Bd4 {[%emt 0:00:18]} Re8 {[%emt 0:00:25]} 37. Be5 {[%emt 0:00:22]} Rd8 {[%emt 0:00:59]} 38. Bd4 {[%emt 0:00:01]} Kf8 {[%emt 0:00:20]} 39. g3 {[%emt 0:00:10]} Re8 {[%emt 0:00:20]} 40. Be5 {[%emt 0:00:25]} Kg8 {[%emt 0:00:21]} 41. Re3 {[%emt 0:00:13]} Rd8 {[%emt 0:00:08]} 42. Bd4 {[%emt 0:00:01]} Re8 {[%emt 0:00:09]} 43. Be5 {[%emt 0:00:05]} Rd8 {[%emt 0:00:05]} 44. Bd4 {[%emt 0:00:05]} Re8 {[%emt 0:00:05]} 45. Rxe8+ {[%emt 0:00:05]} Bxe8 {[%emt 0:00:05]} 46. Be5 {[%emt 0:00:05]} a6 {[%emt 0:00:05]} 47. Ke3 {[%emt 0:00:05]} b5 {[%emt 0:00:05]} 48. Kd4 {[%emt 0:00:05]} Bc6 {[%emt 0:00:00]} 49. Kc5 {[%emt 0:00:00]} Bg2 {[%emt 0:00:28]} 50. h4 {[%emt 0:00:00]} Kf8 {[%emt 0:00:07]} 51. Bf6 {[%emt 0:00:00]} Ke8 {[%emt 0:00:03]} 52. Kb6 {[%emt 0:00:06]} Kd7 {[%emt 0:00:03]} 53. Kxa6 {[%emt 0:00:04]} Kc6 {[%emt 0:00:05]} 54. Bd4 {[%emt 0:00:00]} Be4 {[%emt 0:00:09]} 55. Ka5 {[%emt 0:00:11]} Bc2 {[%emt 0:00:05]} 56. Kb4 {[%emt 0:00:05]} Bb1 {[%emt 0:00:06]} 57. Ka3 {[%emt 0:00:02]} Bc2 {[%emt 0:00:07]} 58. b3 {[%emt 0:00:04]} cxb3 {[%emt 0:00:05]} 59. axb3 {[%emt 0:00:05]} Bd3 {[%emt 0:00:05]} 60. Kb4 {[%emt 0:00:05]} Be2 {[%emt 0:00:05]} 61. c4 {[%emt 0:00:05]} bxc4 {[%emt 0:00:05]} 62. bxc4 {[%emt 0:00:05]} Bd3 {[%emt 0:00:05]} 63. Kc3 {[%emt 0:00:05]} Bf5 {[%emt 0:00:05]} 64. Ba7 {[%emt 0:00:00]} Be6 {[%emt 0:00:05]} 65. Kd4 {[%emt 0:00:00]} f6 {[%emt 0:00:05]} 66. Bc5 {[%emt 0:00:00]} Kd7 {[%emt 0:00:05]} 67. Bf8 {[%emt 0:00:00]} Bf7 {[%emt 0:00:34]} 68. Kc5 {[%emt 0:00:00]} Ke6 {[%emt 0:00:22]} 69. Kd4 {[%emt 0:01:13]} Kf5 {[%emt 0:00:12]} 70. Bg7 {[%emt 0:00:12]} g5 {[%emt 0:00:39]} 71. hxg5 {[%emt 0:00:06]} fxg5 {[%emt 0:00:00]} 72. fxg5 {[%emt 0:00:02]} Kxg5 {[%emt 0:00:01]} 73. c5 {[%emt 0:00:05]} Be6 {[%emt 0:00:05]} 74. Be5 {[%emt 0:00:05]} h5 {[%emt 0:00:05]} 75. c6 {[%emt 0:00:01]} Kg4 {[%emt 0:00:13]} 76. Kc5 {[%emt 0:00:03]} h4 {[%emt 0:00:08]} 77. gxh4 {[%emt 0:00:01]} Kxh4 {[%emt 0:00:02]} 78. Kd6 {[%emt 0:00:05]} Bg4 {[%emt 0:00:02]} 79. Kd5 {[%emt 0:00:04]} 1/2-1/2

[Event "Red Bull Chess Masters 2018"]
[Site "Istanbul"]
[Date "2018.10.20"]
[Round "3.1"]
[White "Ozen, Bahadir"]
[Black "Tasdogen, Dincer"]
[Result "0-1"]
[ECO "B08"]
[WhiteElo "2349"]
[BlackElo "2310"]
[Annotator "NA"]
[PlyCount "136"]
[EventDate "2018.10.19"]
[EventType "team-tourn"]
[EventCountry "TUR"]
[SourceTitle "playchess.com"]
[Source "ChessBase"]
[SourceQuality "1"]
[TimeControl "600+5"]

1. d4 {[%emt 0:00:09]} d6 {[%emt 0:00:05]} 2. Nf3 {[%emt 0:00:05]} g6 {[%emt 0:00:05]} 3. e4 {[%emt 0:00:05]} Bg7 {[%emt 0:00:05]} 4. Nc3 {[%emt 0:00:02]} Nf6 {[%emt 0:00:03]} 5. Be2 {[%emt 0:00:05]} O-O {[%emt 0:00:05]} 6. O-O {[%emt 0:00:02]} Bg4 {[%emt 0:01:24]} 7. Be3 {[%emt 0:00:45]} Nc6 {[%emt 0:00:26]} 8. h3 {[%emt 0:02:05]} Bxf3 {[%emt 0:00:05]} 9. Bxf3 {[%emt 0:00:05]} e5 {[%emt 0:00:05]} 10. d5 {[%emt 0:00:13]} Ne7 {[%emt 0:00:26]} 11. Qd3 {[%emt 0:00:11] B08: Pirc Defence: Classical System} (11. Nb5 a6 12. Na3 Nd7 13. c4 f5 14. Rc1 Kh8 15. b4 a5 16. c5 axb4 17. cxd6 cxd6 18. Nb5 fxe4 {0-1 (34) Hansen,E (2629)-Carlsen,M (2834) chess.com INT 2018}) 11... Nd7 {[%emt 0:00:04]} 12. Qb5 {[%emt 0:00:24]} Qc8 {[%emt 0:03:23]} 13. Bg5 {[%emt 0:01:25]} Bf6 {[%emt 0:00:47]} 14. Bh6 {[%emt 0:00:05]} Bg7 {[%emt 0:00:05]} 15. Bg5 {[%emt 0:00:05]} Bf6 {[%emt 0:00:00]} 16. Be3 {[%emt 0:00:48]} Bg7 {[%emt 0:00:02]} 17. Qc4 {[%emt 0:00:01]} a6 {[%emt 0:01:37]} 18. a4 {[%emt 0:00:02]} f5 {[%emt 0:00:16]} 19. a5 $146 {[%emt 0:00:09]} ({Predecessor:} 19. Bd2 Nf6 20. exf5 gxf5 21. Rfe1 Kh8 22. Rad1 c6 23. dxc6 {½-½ (43) Flecher,J (1804)-Graziani,M (2191) ICCF email 2010}) 19... f4 {[%emt 0:00:07]} 20. Bd2 {[%emt 0:00:05]} Nf6 {[%emt 0:00:03]} 21. b4 {[%emt 0:00:08]} g5 {[%emt 0:00:14]} 22. Qe2 {[%emt 0:00:31]} Ng6 {[%emt 0:00:16]} 23. Bg4 {[%emt 0:00:20]} Nxg4 {[%emt 0:00:50]} 24. Qxg4 {[%emt 0:00:05]} Qe8 {[%emt 0:00:05]} 25. Qxg5 {[%emt 0:00:05]} Bf6 {[%emt 0:00:05]} 26. Qh5 {[%emt 0:01:07]} Kh8 {[%emt 0:00:06]} 27. Kh1 {[%emt 0:00:00]} Qd7 {[%emt 0:00:29]} 28. Qg4 {[%emt 0:01:46]} Qg7 {[%emt 0:00:31]} 29. Ne2 $16 {[%emt 0:00:40]} Rg8 {[%emt 0:00:14]} 30. Rg1 {[%emt 0:00:16]} Raf8 {[%emt 0:00:14]} 31. Ra3 {[%emt 0:00:12]} Qh6 {[%emt 0:00:05]} 32. Ng3 {[%emt 0:00:05]} Nh4 {[%emt 0:00:00] [#]} 33. Qh5 $1 {[%emt 0:00:11]} Qg7 {[%emt 0:00:12]} 34. Nf5 {[%emt 0:00:05]} Nxf5 {[%emt 0:00:05]} 35. Qxf5 {[%emt 0:00:05]} Bh4 {[%emt 0:00:05]} 36. Qg4 {[%emt 0:00:15]} Qxg4 {[%emt 0:00:02]} 37. hxg4 {[%emt 0:00:05]} Bxf2 {[%emt 0:00:00]} 38. Rf1 {[%emt 0:00:00]} Bg3 {[%emt 0:00:05]} 39. Rc3 {[%emt 0:00:05]} Rxg4 {[%emt 0:00:05]} 40. Rxc7 {[%emt 0:00:05]} Rf6 {[%emt 0:00:05]} 41. Rf3 {[%emt 0:00:05]} Rh6+ {[%emt 0:00:05]} 42. Kg1 {[%emt 0:00:04]} Rgh4 {[%emt 0:00:15]} 43. Rc8+ {[%emt 0:00:09]} Kg7 {[%emt 0:00:05]} 44. Rxg3+ {[%emt 0:00:05]} fxg3 {[%emt 0:00:05]} 45. Rc7+ {[%emt 0:00:05]} Kg6 {[%emt 0:00:05]} 46. Bxh6 {[%emt 0:00:00]} Rxe4 {[%emt 0:00:06]} 47. Bd2 {[%emt 0:00:00]} Re2 {[%emt 0:00:02]} 48. Bc3 {[%emt 0:00:24]} Rxc2 {[%emt 0:00:05]} 49. Kf1 {[%emt 0:00:05]} Kf5 {[%emt 0:00:00]} 50. Ke1 {[%emt 0:00:09]} Rxg2 {[%emt 0:00:08]} 51. Rxb7 {[%emt 0:00:02]} Rg1+ {[%emt 0:00:14]} 52. Kd2 {[%emt 0:00:05]} h5 {[%emt 0:00:05]} 53. b5 {[%emt 0:00:02]} axb5 {[%emt 0:00:05]} 54. a6 {[%emt 0:00:05]} Rg2+ {[%emt 0:00:05]} 55. Kd3 {[%emt 0:00:05]} Ra2 {[%emt 0:00:05]} 56. a7 {[%emt 0:00:05]} h4 {[%emt 0:00:00]} 57. Bd2 {[%emt 0:00:08]} g2 {[%emt 0:00:00]} 58. Be3 {[%emt 0:00:05]} h3 {[%emt 0:00:12]} 59. Rf7+ {[%emt 0:00:12]} Kg6 {[%emt 0:00:05]} 60. Rf8 {[%emt 0:00:05]} Kg7 {[%emt 0:00:05]} 61. Rf5 {[%emt 0:00:05]} Kg6 {[%emt 0:00:05]} 62. Rf8 {[%emt 0:00:05]} Kg7 {[%emt 0:00:00]} 63. Rf5 {[%emt 0:00:00]} Kg6 {[%emt 0:00:15]} 64. Rf8 {[%emt 0:00:00]} Kg7 {[%emt 0:00:00]} 65. Rf5 {[%emt 0:00:00]} h2 {[%emt 0:00:02]} 66. Rg5+ {[%emt 0:00:00]} Kf6 {[%emt 0:00:05]} 67. Rxg2 {[%emt 0:00:00]} h1=Q {[%emt 0:00:03]} 68. Rxa2 {[%emt 0:00:01]} Qxd5+ {[%emt 0:00:02]} 0-1